[Event "Titled Tuesday Blitz April 19 Early 2022"]
[White "Lou, Yiping"]
[Black "Gabdrakhmanov, Azat"]
[WhiteFideId "8603928"]
[BlackFideId "34189197"]
[WhiteElo "2412"]
[BlackElo "2279"]
[Result "0-1"]
[Round "07"]
[TimeControl "180+1"]
[Date "2022.04.19"]
[WhiteClock "0:00:02"]
[BlackClock "0:00:18"]

1. c4 {[%clk 0:02:59]}  Nf6 {[%clk 0:02:59]} 2. Nc3 {[%clk 0:02:58]}  c5 {[%clk 0:02:58]} 3. Nf3 {[%clk 0:02:56]}  e6 {[%clk 0:02:58]} 4. g3 {[%clk 0:02:54]}  b6 {[%clk 0:02:58]} 5. Bg2 {[%clk 0:02:54]}  Bb7 {[%clk 0:02:59]} 6. O-O {[%clk 0:02:54]}  Be7 {[%clk 0:02:59]} 7. d4 {[%clk 0:02:54]}  cxd4 {[%clk 0:02:59]} 8. Qxd4 {[%clk 0:02:54]}  O-O {[%clk 0:02:58]} 9. Rd1 {[%clk 0:02:54]}  Qc8 {[%clk 0:02:59]} 10. Bf4 {[%clk 0:02:38]}  Na6 {[%clk 0:02:58]} 11. Rac1 {[%clk 0:02:30]}  Nc5 {[%clk 0:02:58]} 12. Bd6 {[%clk 0:02:27]}  Bxd6 {[%clk 0:02:57]} 13. Qxd6 {[%clk 0:02:27]}  Rd8 {[%clk 0:02:57]} 14. b4 {[%clk 0:02:22]}  Nce4 {[%clk 0:02:57]} 15. Nxe4 {[%clk 0:02:15]}  Nxe4 {[%clk 0:02:58]} 16. Qf4 {[%clk 0:02:07]}  d6 {[%clk 0:02:49]} 17. Ne1 {[%clk 0:01:51]}  e5 {[%clk 0:02:44]} 18. Qe3 {[%clk 0:01:47]}  Nf6 {[%clk 0:02:43]} 19. a4 {[%clk 0:01:43]}  Bxg2 {[%clk 0:02:40]} 20. Nxg2 {[%clk 0:01:44]}  Qc6 {[%clk 0:02:38]} 21. Qb3 {[%clk 0:01:36]}  Rac8 {[%clk 0:02:14]} 22. Ne3 {[%clk 0:01:36]}  h6 {[%clk 0:02:14]} 23. f3 {[%clk 0:01:32]}  Rd7 {[%clk 0:02:13]} 24. Rc2 {[%clk 0:01:27]}  e4 {[%clk 0:01:58]} 25. f4 {[%clk 0:01:23]}  a5 {[%clk 0:01:58]} 26. bxa5 {[%clk 0:01:15]}  bxa5 {[%clk 0:01:58]} 27. Qb5 {[%clk 0:01:15]}  Qa8 {[%clk 0:01:57]} 28. Rb2 {[%clk 0:01:11]}  h5 {[%clk 0:01:09]} 29. Kf2 {[%clk 0:01:11]}  Rdd8 {[%clk 0:00:51]} 30. Qb7 {[%clk 0:01:05]}  Qxb7 {[%clk 0:00:50]} 31. Rxb7 {[%clk 0:01:06]}  Ng4+ {[%clk 0:00:50]} 32. Nxg4 {[%clk 0:01:02]}  hxg4 {[%clk 0:00:51]} 33. Rb5 {[%clk 0:00:59]}  Rxc4 {[%clk 0:00:50]} 34. Rxa5 {[%clk 0:00:57]}  Rc3 {[%clk 0:00:49]} 35. Rad5 {[%clk 0:00:51]}  e3+ {[%clk 0:00:50]} 36. Kf1 {[%clk 0:00:48]}  Ra8 {[%clk 0:00:45]} 37. a5 {[%clk 0:00:39]}  Ra3 {[%clk 0:00:44]} 38. Rxd6 {[%clk 0:00:33]}  R8xa5 {[%clk 0:00:42]} 39. R1d3 {[%clk 0:00:27]}  Ra1+ {[%clk 0:00:35]} 40. Kg2 {[%clk 0:00:25]}  Re1 {[%clk 0:00:34]} 41. Rxe3 {[%clk 0:00:25]}  Raa1 {[%clk 0:00:35]} 42. Re8+ {[%clk 0:00:20]}  Kh7 {[%clk 0:00:35]} 43. Re7 {[%clk 0:00:15]}  Rg1+ {[%clk 0:00:31]} 44. Kf2 {[%clk 0:00:15]}  Rh1 {[%clk 0:00:21]} 45. Rxf7 {[%clk 0:00:15]}  Rxh2+ {[%clk 0:00:21]} 46. Ke3 {[%clk 0:00:15]}  Ra2 {[%clk 0:00:19]} 47. Ke4 {[%clk 0:00:12]}  Raxe2+ {[%clk 0:00:18]} 48. Kf5 {[%clk 0:00:12]}  Rh6 {[%clk 0:00:17]} 49. Rxh6+ {[%clk 0:00:07]}  Kxh6 {[%clk 0:00:17]} 50. Kxg4 {[%clk 0:00:07]}  Re6 {[%clk 0:00:17]} 51. Ra7 {[%clk 0:00:07]}  Rb6 {[%clk 0:00:17]} 52. Ra5 {[%clk 0:00:07]}  Rc6 {[%clk 0:00:17]} 53. Kh4 {[%clk 0:00:07]}  Kg6 {[%clk 0:00:18]} 54. g4 {[%clk 0:00:07]}  Kh6 {[%clk 0:00:18]} 55. g5+ {[%clk 0:00:06]}  Kg6 {[%clk 0:00:18]} 56. f5+ {[%clk 0:00:06]}  Kh7 {[%clk 0:00:19]} 57. Ra7 {[%clk 0:00:06]}  Rc1 {[%clk 0:00:19]} 58. f6 {[%clk 0:00:06]}  Rh1+ {[%clk 0:00:19]} 59. Kg4 {[%clk 0:00:05]}  Rg1+ {[%clk 0:00:19]} 60. Kf5 {[%clk 0:00:05]}  Rf1+ {[%clk 0:00:20]} 61. Ke4 {[%clk 0:00:04]}  Re1+ {[%clk 0:00:19]} 62. Kf3 {[%clk 0:00:04]}  Rf1+ {[%clk 0:00:19]} 63. Kg2 {[%clk 0:00:04]}  Rf5 {[%clk 0:00:17]} 64. Rxg7+ {[%clk 0:00:02]}  Kh8 {[%clk 0:00:18]} 0-1


[Site "https://www.chess.com"]

[Event "Titled Tuesday Blitz April 19 Early 2022"]
[White "Makarian, Rudik"]
[Black "Kozak, Antoni"]
[WhiteFideId "44105681"]
[BlackFideId "21832030"]
[WhiteElo "2388"]
[BlackElo "2236"]
[Result "1-0"]
[Round "07"]
[TimeControl "180+1"]
[Date "2022.04.19"]
[WhiteClock "0:00:54"]
[BlackClock "0:00:01"]

1. c4 {[%clk 0:03:00]}  e6 {[%clk 0:02:53]} 2. Nf3 {[%clk 0:02:59]}  d5 {[%clk 0:02:53]} 3. b3 {[%clk 0:03:00]}  Nf6 {[%clk 0:02:50]} 4. e3 {[%clk 0:03:00]}  b6 {[%clk 0:02:48]} 5. Bb2 {[%clk 0:03:00]}  Bb7 {[%clk 0:02:48]} 6. cxd5 {[%clk 0:03:01]}  exd5 {[%clk 0:02:46]} 7. Nc3 {[%clk 0:03:01]}  a6 {[%clk 0:02:44]} 8. Ne2 {[%clk 0:02:58]}  Bd6 {[%clk 0:02:42]} 9. Nf4 {[%clk 0:02:57]}  Nbd7 {[%clk 0:02:37]} 10. d4 {[%clk 0:02:55]}  Qe7 {[%clk 0:02:33]} 11. Bd3 {[%clk 0:02:56]}  Bxf4 {[%clk 0:02:32]} 12. O-O {[%clk 0:02:55]}  Bd6 {[%clk 0:02:31]} 13. a3 {[%clk 0:02:55]}  O-O {[%clk 0:02:23]} 14. b4 {[%clk 0:02:56]}  Ne4 {[%clk 0:02:22]} 15. Rc1 {[%clk 0:02:55]}  f5 {[%clk 0:02:21]} 16. Qb3 {[%clk 0:02:56]}  Kh8 {[%clk 0:02:19]} 17. Rc2 {[%clk 0:02:57]}  Rae8 {[%clk 0:02:11]} 18. Rfc1 {[%clk 0:02:56]}  Rc8 {[%clk 0:02:04]} 19. Qa4 {[%clk 0:02:53]}  b5 {[%clk 0:02:00]} 20. Qb3 {[%clk 0:02:53]}  Nb6 {[%clk 0:01:59]} 21. Ne5 {[%clk 0:02:54]}  Nc4 {[%clk 0:01:58]} 22. f4 {[%clk 0:02:49]}  g5 {[%clk 0:01:36]} 23. Re2 {[%clk 0:02:48]}  Qe6 {[%clk 0:01:16]} 24. Qc2 {[%clk 0:02:46]}  Rg8 {[%clk 0:01:06]} 25. Rf1 {[%clk 0:02:36]}  Rg7 {[%clk 0:01:01]} 26. Bxe4 {[%clk 0:02:10]}  fxe4 {[%clk 0:00:59]} 27. f5 {[%clk 0:02:11]}  Qf6 {[%clk 0:00:39]} 28. Ng4 {[%clk 0:02:11]}  Qf8 {[%clk 0:00:37]} 29. f6 {[%clk 0:02:11]}  Rg6 {[%clk 0:00:35]} 30. Ref2 {[%clk 0:02:11]}  h5 {[%clk 0:00:27]} 31. Ne5 {[%clk 0:02:11]}  Bxe5 {[%clk 0:00:19]} 32. dxe5 {[%clk 0:02:12]}  Nxe3 {[%clk 0:00:19]} 33. Qc3 {[%clk 0:02:12]}  Nxf1 {[%clk 0:00:19]} 34. e6 {[%clk 0:02:11]}  e3 {[%clk 0:00:13]} 35. Rxf1 {[%clk 0:02:03]}  Kh7 {[%clk 0:00:13]} 36. Qxe3 {[%clk 0:01:50]}  Re8 {[%clk 0:00:09]} 37. e7 {[%clk 0:01:37]}  Qf7 {[%clk 0:00:09]} 38. Bd4 {[%clk 0:01:37]}  Bc8 {[%clk 0:00:09]} 39. Qe5 {[%clk 0:01:36]}  Bd7 {[%clk 0:00:09]} 40. Qxc7 {[%clk 0:01:35]}  Bg4 {[%clk 0:00:09]} 41. h3 {[%clk 0:01:35]}  Be6 {[%clk 0:00:08]} 42. Qe5 {[%clk 0:01:34]}  h4 {[%clk 0:00:08]} 43. Re1 {[%clk 0:01:32]}  Bc8 {[%clk 0:00:08]} 44. Kh2 {[%clk 0:01:28]}  g4 {[%clk 0:00:09]} 45. hxg4 {[%clk 0:01:24]}  Rxg4 {[%clk 0:00:08]} 46. Rf1 {[%clk 0:01:22]}  Qg6 {[%clk 0:00:08]} 47. Rf2 {[%clk 0:01:21]}  Qf7 {[%clk 0:00:08]} 48. Rf4 {[%clk 0:01:12]}  Rxf4 {[%clk 0:00:07]} 49. Qxf4 {[%clk 0:01:12]}  Kg6 {[%clk 0:00:04]} 50. Kg1 {[%clk 0:01:10]}  Bf5 {[%clk 0:00:02]} 51. Qxh4 {[%clk 0:01:09]}  Qe6 {[%clk 0:00:03]} 52. Qg3+ {[%clk 0:01:08]}  Kh5 {[%clk 0:00:02]} 53. Qf4 {[%clk 0:00:55]}  Qe5 {[%clk 0:00:01]} 54. Bxe5 {[%clk 0:00:54]} 1-0


[Site "https://www.chess.com"]

[Event "Titled Tuesday Blitz April 19 Early 2022"]
[White "Mangialardo, Tiago Carvalho"]
[Black "Krylov, Ivan"]
[WhiteFideId "2130718"]
[BlackFideId "24128066"]
[WhiteElo "2040"]
[BlackElo "2258"]
[Result "1-0"]
[Round "07"]
[TimeControl "180+1"]
[Date "2022.04.19"]
[WhiteClock "0:00:02"]
[BlackClock "0:00:05"]

1. e4 {[%clk 0:03:00]}  c6 {[%clk 0:02:43]} 2. c4 {[%clk 0:03:00]}  d5 {[%clk 0:02:44]} 3. exd5 {[%clk 0:03:01]}  cxd5 {[%clk 0:02:44]} 4. cxd5 {[%clk 0:03:02]}  Nf6 {[%clk 0:02:44]} 5. Bb5+ {[%clk 0:03:02]}  Nbd7 {[%clk 0:02:33]} 6. Nc3 {[%clk 0:03:02]}  a6 {[%clk 0:02:31]} 7. Ba4 {[%clk 0:03:02]}  b5 {[%clk 0:02:29]} 8. Bb3 {[%clk 0:03:02]}  Nb6 {[%clk 0:02:29]} 9. Nf3 {[%clk 0:03:02]}  Bb7 {[%clk 0:02:26]} 10. O-O {[%clk 0:03:01]}  Nbxd5 {[%clk 0:02:25]} 11. d4 {[%clk 0:03:01]}  e6 {[%clk 0:02:24]} 12. Bg5 {[%clk 0:03:00]}  Be7 {[%clk 0:02:24]} 13. Ne5 {[%clk 0:02:58]}  O-O {[%clk 0:02:21]} 14. Qe2 {[%clk 0:02:51]}  Rc8 {[%clk 0:02:15]} 15. Rac1 {[%clk 0:02:45]}  h6 {[%clk 0:02:11]} 16. Nxd5 {[%clk 0:02:41]}  Bxd5 {[%clk 0:01:58]} 17. Rxc8 {[%clk 0:02:33]}  Qxc8 {[%clk 0:01:58]} 18. Rc1 {[%clk 0:02:34]}  Qb7 {[%clk 0:01:53]} 19. Bxd5 {[%clk 0:01:36]}  Qxd5 {[%clk 0:01:46]} 20. Nc6 {[%clk 0:01:27]}  Bd8 {[%clk 0:01:37]} 21. Bh4 {[%clk 0:01:14]}  Qxa2 {[%clk 0:01:18]} 22. h3 {[%clk 0:00:12]}  Qd5 {[%clk 0:01:08]} 23. Rc5 {[%clk 0:00:12]}  Qd6 {[%clk 0:00:59]} 24. Bg3 {[%clk 0:00:09]}  Qd7 {[%clk 0:00:57]} 25. Ne5 {[%clk 0:00:04]}  Qxd4 {[%clk 0:00:50]} 26. Rc6 {[%clk 0:00:04]}  Ne4 {[%clk 0:00:42]} 27. Bf4 {[%clk 0:00:02]}  Bf6 {[%clk 0:00:32]} 28. Nf3 {[%clk 0:00:01]}  Qd5 {[%clk 0:00:26]} 29. Rxa6 {[%clk 0:00:01]}  g5 {[%clk 0:00:19]} 30. Be3 {[%clk 0:00:01]}  Be7 {[%clk 0:00:14]} 31. Rb6 {[%clk 0:00:02]}  Rc8 {[%clk 0:00:13]} 32. Rxb5 {[%clk 0:00:02]}  Qd7 {[%clk 0:00:11]} 33. h4 {[%clk 0:00:02]}  gxh4 {[%clk 0:00:10]} 34. Nxh4 {[%clk 0:00:03]}  Bxh4 {[%clk 0:00:09]} 35. Bxh6 {[%clk 0:00:02]}  Bf6 {[%clk 0:00:08]} 36. Qg4+ {[%clk 0:00:02]}  Kh7 {[%clk 0:00:07]} 37. Rh5 {[%clk 0:00:02]}  Re8 {[%clk 0:00:05]} 38. Bf4# {[%clk 0:00:02]} 1-0


[Site "https://www.chess.com"]

[Event "Titled Tuesday Blitz April 19 Early 2022"]
[White "Mikhailovsky, Vladimir"]
[Black "Alekseenko, Kirill"]
[WhiteFideId "34105414"]
[BlackFideId "4135539"]
[WhiteElo "2349"]
[BlackElo "2682"]
[Result "1-0"]
[Round "07"]
[TimeControl "180+1"]
[Date "2022.04.19"]
[WhiteClock "0:00:07"]
[BlackClock "0:00:09"]

1. e4 {[%clk 0:03:00]}  e5 {[%clk 0:02:59]} 2. Nf3 {[%clk 0:03:00]}  Nc6 {[%clk 0:03:00]} 3. Nc3 {[%clk 0:03:00]}  Nf6 {[%clk 0:02:59]} 4. d4 {[%clk 0:03:01]}  exd4 {[%clk 0:03:00]} 5. Nxd4 {[%clk 0:03:02]}  Bb4 {[%clk 0:03:00]} 6. Nxc6 {[%clk 0:03:02]}  bxc6 {[%clk 0:03:01]} 7. Bd3 {[%clk 0:03:03]}  d5 {[%clk 0:03:01]} 8. exd5 {[%clk 0:03:04]}  O-O {[%clk 0:03:02]} 9. O-O {[%clk 0:03:04]}  cxd5 {[%clk 0:03:02]} 10. h3 {[%clk 0:03:04]}  c6 {[%clk 0:03:01]} 11. Qf3 {[%clk 0:03:04]}  Re8 {[%clk 0:03:00]} 12. Bf4 {[%clk 0:03:03]}  Bd6 {[%clk 0:03:00]} 13. Rfe1 {[%clk 0:03:03]}  Be6 {[%clk 0:02:59]} 14. Ne2 {[%clk 0:03:00]}  Rb8 {[%clk 0:02:57]} 15. b3 {[%clk 0:03:00]}  c5 {[%clk 0:02:58]} 16. Rad1 {[%clk 0:03:00]}  Qc7 {[%clk 0:02:45]} 17. c3 {[%clk 0:02:54]}  a5 {[%clk 0:02:43]} 18. Bxd6 {[%clk 0:02:32]}  Qxd6 {[%clk 0:02:43]} 19. Nf4 {[%clk 0:02:33]}  Bd7 {[%clk 0:02:32]} 20. Rxe8+ {[%clk 0:02:02]}  Rxe8 {[%clk 0:02:33]} 21. Bc4 {[%clk 0:02:02]}  Bc6 {[%clk 0:02:30]} 22. Bxd5 {[%clk 0:01:35]}  Nxd5 {[%clk 0:02:02]} 23. Nxd5 {[%clk 0:01:36]}  h6 {[%clk 0:01:51]} 24. c4 {[%clk 0:01:07]}  Qg6 {[%clk 0:01:50]} 25. Qc3 {[%clk 0:00:48]}  a4 {[%clk 0:01:33]} 26. Rd3 {[%clk 0:00:31]}  axb3 {[%clk 0:01:32]} 27. axb3 {[%clk 0:00:31]}  Qe4 {[%clk 0:01:05]} 28. Re3 {[%clk 0:00:22]}  Qb1+ {[%clk 0:01:05]} 29. Kh2 {[%clk 0:00:22]}  Rxe3 {[%clk 0:01:05]} 30. Qxe3 {[%clk 0:00:19]}  Kh7 {[%clk 0:00:58]} 31. Qxc5 {[%clk 0:00:15]}  Bxd5 {[%clk 0:00:59]} 32. Qxd5 {[%clk 0:00:14]}  Qxb3 {[%clk 0:00:56]} 33. Qxf7 {[%clk 0:00:14]}  Qc2 {[%clk 0:00:57]} 34. g3 {[%clk 0:00:12]}  Kh8 {[%clk 0:00:52]} 35. h4 {[%clk 0:00:12]}  Kh7 {[%clk 0:00:51]} 36. Kg2 {[%clk 0:00:12]}  Qc3 {[%clk 0:00:52]} 37. Qf5+ {[%clk 0:00:12]}  Kg8 {[%clk 0:00:52]} 38. Qd5+ {[%clk 0:00:12]}  Kh7 {[%clk 0:00:53]} 39. c5 {[%clk 0:00:13]}  Kg6 {[%clk 0:00:49]} 40. c6 {[%clk 0:00:13]}  h5 {[%clk 0:00:50]} 41. Qd6+ {[%clk 0:00:12]}  Kh7 {[%clk 0:00:48]} 42. c7 {[%clk 0:00:13]}  Qc2 {[%clk 0:00:48]} 43. Qd7 {[%clk 0:00:08]}  Qe4+ {[%clk 0:00:47]} 44. Kh2 {[%clk 0:00:09]}  Qc2 {[%clk 0:00:36]} 45. Kg1 {[%clk 0:00:07]}  Qb1+ {[%clk 0:00:35]} 46. Kg2 {[%clk 0:00:06]}  Qe4+ {[%clk 0:00:35]} 47. Kh2 {[%clk 0:00:06]}  Qc2 {[%clk 0:00:35]} 48. Qf7 {[%clk 0:00:05]}  Kh6 {[%clk 0:00:26]} 49. Kg2 {[%clk 0:00:06]}  Qc6+ {[%clk 0:00:26]} 50. Kg1 {[%clk 0:00:05]}  Qc1+ {[%clk 0:00:26]} 51. Kh2 {[%clk 0:00:05]}  Qc2 {[%clk 0:00:26]} 52. Qf4+ {[%clk 0:00:05]}  Kh7 {[%clk 0:00:27]} 53. Kg2 {[%clk 0:00:05]}  Qc6+ {[%clk 0:00:26]} 54. Kf1 {[%clk 0:00:05]}  Qa6+ {[%clk 0:00:23]} 55. Ke1 {[%clk 0:00:05]}  Qa1+ {[%clk 0:00:23]} 56. Ke2 {[%clk 0:00:06]}  Qa2+ {[%clk 0:00:23]} 57. Ke3 {[%clk 0:00:06]}  Qb3+ {[%clk 0:00:23]} 58. Ke4 {[%clk 0:00:05]}  Qe6+ {[%clk 0:00:23]} 59. Kd4 {[%clk 0:00:05]}  Qb6+ {[%clk 0:00:23]} 60. Kd5 {[%clk 0:00:05]}  Qb5+ {[%clk 0:00:21]} 61. Kd6 {[%clk 0:00:05]}  Qb6+ {[%clk 0:00:20]} 62. Kd7 {[%clk 0:00:06]}  Qb5+ {[%clk 0:00:21]} 63. Ke7 {[%clk 0:00:05]}  Qc5+ {[%clk 0:00:19]} 64. Kd8 {[%clk 0:00:04]}  Qd5+ {[%clk 0:00:19]} 65. Kc8 {[%clk 0:00:04]}  Qa8+ {[%clk 0:00:18]} 66. Kd7 {[%clk 0:00:04]}  Qd5+ {[%clk 0:00:19]} 67. Qd6 {[%clk 0:00:05]}  Qf7+ {[%clk 0:00:18]} 68. Kd8 {[%clk 0:00:05]}  Qg8+ {[%clk 0:00:17]} 69. Ke7 {[%clk 0:00:05]}  Qa8 {[%clk 0:00:17]} 70. Qd7 {[%clk 0:00:03]}  Qe4+ {[%clk 0:00:17]} 71. Kd8 {[%clk 0:00:03]}  Qe5 {[%clk 0:00:08]} 72. c8=Q {[%clk 0:00:04]}  Qf6+ {[%clk 0:00:08]} 73. Qe7 {[%clk 0:00:04]}  Qd4+ {[%clk 0:00:09]} 74. Qcd7 {[%clk 0:00:04]}  Qb6+ {[%clk 0:00:09]} 75. Ke8 {[%clk 0:00:05]}  Qb8+ {[%clk 0:00:09]} 76. Qed8 {[%clk 0:00:05]}  Qe5+ {[%clk 0:00:09]} 77. Q7e7 {[%clk 0:00:05]}  Qb5+ {[%clk 0:00:09]} 78. Kf8 {[%clk 0:00:06]}  Qf5+ {[%clk 0:00:10]} 79. Qf7 {[%clk 0:00:06]}  Qc5+ {[%clk 0:00:10]} 80. Ke8 {[%clk 0:00:05]}  Qc6+ {[%clk 0:00:09]} 81. Qdd7 {[%clk 0:00:05]}  Qa8+ {[%clk 0:00:10]} 82. Ke7 {[%clk 0:00:05]}  Qe4+ {[%clk 0:00:10]} 83. Qfe6 {[%clk 0:00:06]}  Qb4+ {[%clk 0:00:10]} 84. Qdd6 {[%clk 0:00:06]}  Qb7+ {[%clk 0:00:11]} 85. Qed7 {[%clk 0:00:06]}  Qe4+ {[%clk 0:00:11]} 86. Q6e6 {[%clk 0:00:07]}  Qb4+ {[%clk 0:00:11]} 87. Ke8 {[%clk 0:00:07]}  Qb8+ {[%clk 0:00:11]} 88. Kf7 {[%clk 0:00:08]}  Qb2 {[%clk 0:00:10]} 89. Qf5+ {[%clk 0:00:07]}  Kh6 {[%clk 0:00:09]} 90. Qde6+ {[%clk 0:00:07]} 1-0


[Site "https://www.chess.com"]

[Event "Titled Tuesday Blitz April 19 Early 2022"]
[White "Molina, Roberto Junio Brito"]
[Black "Piesik, Piotr"]
[WhiteFideId "2109450"]
[BlackFideId "1136194"]
[WhiteElo "2432"]
[BlackElo "2190"]
[Result "1/2-1/2"]
[Round "07"]
[TimeControl "180+1"]
[Date "2022.04.19"]
[WhiteClock "0:00:11"]
[BlackClock "0:00:10"]

1. d4 {[%clk 0:03:00]}  c5 {[%clk 0:02:52]} 2. d5 {[%clk 0:03:00]}  e5 {[%clk 0:02:51]} 3. e4 {[%clk 0:03:00]}  d6 {[%clk 0:02:51]} 4. Be2 {[%clk 0:03:00]}  Be7 {[%clk 0:02:51]} 5. Bg4 {[%clk 0:03:00]}  Nd7 {[%clk 0:02:51]} 6. Nc3 {[%clk 0:02:56]}  a6 {[%clk 0:02:48]} 7. a4 {[%clk 0:02:55]}  Bg5 {[%clk 0:02:48]} 8. Bxg5 {[%clk 0:02:53]}  Qxg5 {[%clk 0:02:49]} 9. h4 {[%clk 0:02:54]}  Qe7 {[%clk 0:02:48]} 10. Qd2 {[%clk 0:02:52]}  Ngf6 {[%clk 0:02:47]} 11. Be2 {[%clk 0:02:51]}  Nf8 {[%clk 0:02:45]} 12. g3 {[%clk 0:02:44]}  Bg4 {[%clk 0:02:41]} 13. f3 {[%clk 0:02:44]}  Bd7 {[%clk 0:02:40]} 14. a5 {[%clk 0:02:40]}  Ng6 {[%clk 0:02:31]} 15. h5 {[%clk 0:02:38]}  Nf8 {[%clk 0:02:31]} 16. h6 {[%clk 0:02:38]}  gxh6 {[%clk 0:02:31]} 17. Qxh6 {[%clk 0:02:36]}  O-O-O {[%clk 0:02:25]} 18. Qe3 {[%clk 0:02:28]}  Rg8 {[%clk 0:02:24]} 19. g4 {[%clk 0:02:27]}  h5 {[%clk 0:02:23]} 20. gxh5 {[%clk 0:02:23]}  Rg2 {[%clk 0:02:22]} 21. O-O-O {[%clk 0:02:20]}  N8h7 {[%clk 0:02:17]} 22. Bf1 {[%clk 0:02:20]}  Rg5 {[%clk 0:02:15]} 23. h6 {[%clk 0:02:20]}  Rdg8 {[%clk 0:02:13]} 24. Nge2 {[%clk 0:02:19]}  Nh5 {[%clk 0:02:06]} 25. Bh3 {[%clk 0:02:15]}  Bxh3 {[%clk 0:02:05]} 26. Rxh3 {[%clk 0:02:16]}  Qf6 {[%clk 0:02:06]} 27. Rdh1 {[%clk 0:02:15]}  Ng3 {[%clk 0:01:46]} 28. Nxg3 {[%clk 0:02:06]}  Rxg3 {[%clk 0:01:47]} 29. Ne2 {[%clk 0:02:03]}  Rxh3 {[%clk 0:01:43]} 30. Rxh3 {[%clk 0:02:04]}  Qg5 {[%clk 0:01:37]} 31. Qxg5 {[%clk 0:02:01]}  Nxg5 {[%clk 0:01:36]} 32. h7 {[%clk 0:01:27]}  Rh8 {[%clk 0:01:35]} 33. Rh5 {[%clk 0:01:27]}  f6 {[%clk 0:01:28]} 34. Ng3 {[%clk 0:01:07]}  Rxh7 {[%clk 0:01:28]} 35. Rxh7 {[%clk 0:01:07]}  Nxh7 {[%clk 0:01:29]} 36. Kd2 {[%clk 0:01:06]}  Ng5 {[%clk 0:01:26]} 37. Ke3 {[%clk 0:01:06]}  Nh3 {[%clk 0:01:23]} 38. Nh5 {[%clk 0:01:04]}  Kc7 {[%clk 0:01:14]} 39. Nxf6 {[%clk 0:01:02]}  Nf4 {[%clk 0:01:14]} 40. Ng4 {[%clk 0:00:58]}  b6 {[%clk 0:01:12]} 41. axb6+ {[%clk 0:00:58]}  Kxb6 {[%clk 0:01:13]} 42. Kd2 {[%clk 0:00:58]}  Ng2 {[%clk 0:01:04]} 43. Ne3 {[%clk 0:00:56]}  Nh4 {[%clk 0:01:03]} 44. Ke2 {[%clk 0:00:56]}  Kc7 {[%clk 0:01:02]} 45. Kf2 {[%clk 0:00:55]}  Ng6 {[%clk 0:01:02]} 46. Ng2 {[%clk 0:00:53]}  Kb6 {[%clk 0:01:00]} 47. Kg3 {[%clk 0:00:52]}  Kb5 {[%clk 0:01:01]} 48. Kg4 {[%clk 0:00:51]}  c4 {[%clk 0:00:58]} 49. Kf5 {[%clk 0:00:44]}  c3 {[%clk 0:00:50]} 50. b3 {[%clk 0:00:44]}  Nf8 {[%clk 0:00:45]} 51. Ne3 {[%clk 0:00:37]}  Kc5 {[%clk 0:00:40]} 52. Nc4 {[%clk 0:00:19]}  Nd7 {[%clk 0:00:39]} 53. Ke6 {[%clk 0:00:18]}  Nf8+ {[%clk 0:00:39]} 54. Kf5 {[%clk 0:00:18]}  Nd7 {[%clk 0:00:31]} 55. f4 {[%clk 0:00:18]}  exf4 {[%clk 0:00:31]} 56. Kxf4 {[%clk 0:00:19]}  Nf6 {[%clk 0:00:25]} 57. Ke3 {[%clk 0:00:17]}  Ng4+ {[%clk 0:00:21]} 58. Kd3 {[%clk 0:00:16]}  Nf2+ {[%clk 0:00:21]} 59. Ke3 {[%clk 0:00:16]}  Nd1+ {[%clk 0:00:20]} 60. Ke2 {[%clk 0:00:16]}  Nb2 {[%clk 0:00:20]} 61. Ne3 {[%clk 0:00:13]}  Kd4 {[%clk 0:00:20]} 62. Kf3 {[%clk 0:00:11]}  a5 {[%clk 0:00:19]} 63. Kf4 {[%clk 0:00:09]}  Kc5 {[%clk 0:00:16]} 64. Nf5 {[%clk 0:00:10]}  Nc4 {[%clk 0:00:12]} 65. Ne3 {[%clk 0:00:08]}  Ne5 {[%clk 0:00:09]} 66. Kf5 {[%clk 0:00:09]}  Kd4 {[%clk 0:00:08]} 67. Kf4 {[%clk 0:00:09]}  Ng6+ {[%clk 0:00:09]} 68. Kf3 {[%clk 0:00:09]}  Ne5+ {[%clk 0:00:09]} 69. Kf4 {[%clk 0:00:10]}  Ng6+ {[%clk 0:00:09]} 70. Kf3 {[%clk 0:00:11]}  Ne5+ {[%clk 0:00:10]} 71. Kf4 {[%clk 0:00:11]} 1/2-1/2


[Site "https://www.chess.com"]

[Event "Titled Tuesday Blitz April 19 Early 2022"]
[White "Muradov, Soltan"]
[Black "Moskvin, Anatoly"]
[WhiteFideId "14002108"]
[BlackFideId "24199990"]
[WhiteElo "1854"]
[BlackElo "2079"]
[Result "0-1"]
[Round "07"]
[TimeControl "180+1"]
[Date "2022.04.19"]
[WhiteClock "0:02:04"]
[BlackClock "0:02:14"]

1. d4 {[%clk 0:02:57]}  Nf6 {[%clk 0:02:36]} 2. c4 {[%clk 0:02:56]}  c5 {[%clk 0:02:36]} 3. d5 {[%clk 0:02:55]}  b5 {[%clk 0:02:37]} 4. cxb5 {[%clk 0:02:53]}  a6 {[%clk 0:02:38]} 5. bxa6 {[%clk 0:02:54]}  Bxa6 {[%clk 0:02:38]} 6. Nc3 {[%clk 0:02:55]}  g6 {[%clk 0:02:39]} 7. e4 {[%clk 0:02:55]}  Bxf1 {[%clk 0:02:39]} 8. Kxf1 {[%clk 0:02:56]}  d6 {[%clk 0:02:40]} 9. g3 {[%clk 0:02:57]}  Bg7 {[%clk 0:02:41]} 10. Kg2 {[%clk 0:02:58]}  O-O {[%clk 0:02:41]} 11. h3 {[%clk 0:02:58]}  Nbd7 {[%clk 0:02:42]} 12. Nge2 {[%clk 0:02:59]}  Qb6 {[%clk 0:02:43]} 13. Qc2 {[%clk 0:03:00]}  Rfb8 {[%clk 0:02:40]} 14. Rb1 {[%clk 0:02:59]}  Qa6 {[%clk 0:02:38]} 15. b3 {[%clk 0:02:58]}  Ne8 {[%clk 0:02:37]} 16. Bb2 {[%clk 0:02:48]}  Nc7 {[%clk 0:02:37]} 17. h4 {[%clk 0:02:38]}  h5 {[%clk 0:02:34]} 18. Ra1 {[%clk 0:02:33]}  Ne5 {[%clk 0:02:34]} 19. Rhd1 {[%clk 0:02:32]}  c4 {[%clk 0:02:33]} 20. Nd4 {[%clk 0:02:26]}  Nd3 {[%clk 0:02:28]} 21. Nc6 {[%clk 0:02:23]}  Re8 {[%clk 0:02:25]} 22. Rxd3 {[%clk 0:02:19]}  cxd3 {[%clk 0:02:25]} 23. Qd2 {[%clk 0:02:20]}  e6 {[%clk 0:02:18]} 24. a4 {[%clk 0:02:04]}  exd5 {[%clk 0:02:17]} 25. exd5 {[%clk 0:02:04]}  Nxd5 {[%clk 0:02:14]} 26. Nxd5 {[%clk 0:02:04]}  Qxc6 {[%clk 0:02:14]} 0-1


[Site "https://www.chess.com"]